bitfinex/quotes_ETHUSD_20251120
["timestamp","ask_amount","ask_price","bid_price","bid_amount"]
[1763663443659,0.1931,2827.9,2827.1,0.1856]
[1763663443851,0.1,2827.3,2827.1,0.1856]
[1763663444051,0.1,2827.8,2827.1,0.1856]
[1763663444274,0.4582,2827.7,2826.4,0.406504]
[1763663444481,0.1,2827.5,2827.1,0.1856]
[1763663445057,0.1,2827.1,2826.7,0.90699264]
[1763663445792,0.4582,2827.5,2826.7,0.89124274]
[1763663445947,0.4582,2827.5,2826.4,0.001]
[1763663446284,0.1,2827.0,2826.4,0.001]
[1763663446487,0.4582,2827.5,2826.4,0.001]
[1763663446648,0.1,2827.1,2826.4,0.001]
[1763663447081,0.1,2827.0,2826.4,0.001]
[1763663447288,0.1931,2827.9,2826.8,0.405504]
[1763663447471,0.1,2827.7,2826.8,0.866004]
[1763663447675,0.1,2827.7,2827.0,0.405504]
[1763663447876,0.1931,2828.3,2827.7,1.31249664]
[1763663447877,0.1,2828.3,2827.7,1.31249664]
[1763663448202,0.37792047,2829.2,2828.2,1.31249664]
[1763663448488,0.1,2829.0,2828.2,1.31249664]
[1763663448652,0.4582,2829.1,2827.9,0.405504]
[1763663448853,0.1,2828.5,2827.9,0.58280366]
[1763663449191,0.1,2828.0,2826.9,8.23673043]
[1763663449418,0.1,2828.0,2826.1,0.1802]
[1763663449694,0.5582,2828.1,2826.5,8.06043077]
[1763663449853,0.1,2827.7,2826.5,8.06043077]
[1763663450052,0.4582,2828.0,2826.5,0.001]
[1763663450264,0.4582,2827.9,2826.5,0.001]
[1763663450490,0.1,2826.7,2826.5,0.001]
[1763663451058,0.1,2827.2,2826.5,0.4615]
[1763663451284,0.1,2827.2,2826.6,0.405504]
[1763663451487,0.4582,2827.6,2826.5,0.4615]
[1763663451488,0.1,2827.6,2827.1,0.0947]
[1763663451869,0.4582,2827.6,2826.5,0.001]
[1763663452059,0.1,2827.0,2826.5,0.001]
[1763663452266,0.1,2827.0,2826.6,0.405504]
[1763663452455,0.1,2827.2,2826.5,0.001]
[1763663453517,0.1931,2827.8,2826.8,0.90699264]
[1763663453670,0.1,2827.5,2826.8,0.90699264]
[1763663453871,0.1,2827.6,2827.2,0.90699264]
[1763663454594,0.1,2827.8,2827.2,0.90699264]
[1763663454801,0.1,2827.6,2827.2,0.90699264]
[1763663455094,0.6533,2827.9,2827.2,0.90699264]
[1763663455293,0.1,2827.5,2827.2,0.90699264]
[1763663455702,0.1,2827.3,2827.2,0.90699264]
[1763663455866,0.1,2827.3,2826.8,0.90699264]
[1763663456067,0.4582,2827.8,2826.8,0.90699264]
[1763663456068,0.1,2827.0,2826.8,0.90699264]
[1763663456299,0.1,2827.4,2826.8,0.90699264]
[1763663456569,0.102,2827.9,2827.2,0.90699264]
[1763663456964,0.102,2827.9,2827.6,1.31249664]
[1763663456965,0.002,2827.9,2827.6,1.31249664]
[1763663457402,0.002,2827.9,2827.6,0.90699264]
[1763663457708,0.002,2827.9,2827.7,0.4605]
[1763663458506,0.002,2827.9,2827.8,0.866004]
[1763663458803,0.002,2827.9,2827.8,8.89685156]
[1763663459106,0.002,2827.9,2827.8,0.90699264]
[1763663459613,0.1,2827.2,2826.9,7.12385492]
[1763663459905,0.6533,2827.9,2827.0,0.90699264]
[1763663460210,0.1,2827.5,2827.0,0.90699264]
[1763663460406,0.1,2827.7,2827.1,0.0947]
[1763663460712,0.1,2827.6,2827.1,0.0947]
[1763663461070,0.1,2827.6,2827.0,0.90699264]
[1763663461293,0.1,2827.8,2827.4,0.90699264]
[1763663461809,0.002,2827.9,2827.7,7.12385492]
[1763663462007,0.002,2828.2,2827.9,0.405504]
[1763663462193,0.002,2828.5,2828.4,8.43635156]
[1763663462370,0.73973761,2829.4,2828.4,8.43635156]
[1763663462371,0.554957,2829.4,2829.1,7.12385492]
[1763663462565,0.002,2830.4,2829.3,0.405504]
[1763663462805,0.002,2830.4,2829.5,0.405504]
[1763663463006,0.002,2830.4,2830.0,0.90699264]
[1763663463306,0.102,2830.4,2830.0,0.90699264]
[1763663463475,0.002,2830.4,2830.0,0.90699264]
[1763663463670,0.1,2830.3,2829.8,7.12385492]
[1763663463872,0.1,2830.2,2829.2,0.405504]
[1763663464105,0.002,2830.4,2829.9,0.90699264]
[1763663464308,0.1,2830.2,2829.9,0.90699264]
[1763663464612,0.002,2830.4,2829.8,8.03084756]
[1763663464915,0.102,2830.4,2829.8,7.12385492]
[1763663465083,0.1,2830.2,2829.8,7.12385492]
[1763663465406,0.1,2830.3,2829.8,7.12385492]
[1763663465605,0.002,2830.4,2829.8,7.12385492]
[1763663465606,0.002,2830.4,2829.9,0.90699264]
[1763663465913,0.002,2830.7,2830.3,1.49269664]
[1763663466087,0.18668489,2831.4,2830.3,1.49269664]
[1763663466088,0.18668489,2831.4,2830.7,1.31249664]
[1763663466618,0.18668489,2831.4,2830.8,0.90699264]
[1763663466619,0.1,2831.1,2830.8,0.90699264]
[1763663466917,0.2931,2830.9,2830.1,7.12385492]
[1763663467099,0.1931,2830.9,2829.6,0.1802]
[1763663467298,0.1,2830.2,2829.5,7.12385492]
[1763663467496,0.1,2830.3,2829.0,7.12385492]
[1763663467695,0.1931,2830.9,2828.5,7.12385492]
[1763663467696,0.863704,2830.7,2828.5,7.12385492]
[1763663467883,0.405504,2830.7,2828.6,0.90699264]
[1763663468216,0.405504,2830.7,2829.2,7.12385492]
[1763663468217,0.1,2830.0,2829.2,7.12385492]
[1763663468431,0.1,2829.9,2829.3,0.90699264]
[1763663468638,0.1,2829.6,2829.4,0.405504]
[1763663468794,0.463,2830.5,2829.4,0.405504]
[1763663469003,0.463,2830.5,2829.4,0.90699264]
[1763663469196,0.1,2830.4,2829.8,0.90699264]
[1763663469436,0.1,2830.8,2830.3,0.405504]
[1763663469743,0.1,2830.8,2830.6,0.90699264]
[1763663470033,0.002,2831.0,2830.6,0.90699264]
[1763663470236,0.563,2830.9,2830.2,0.90699264]
[1763663470447,0.463,2830.9,2830.3,7.52935892]
[1763663470734,0.463,2830.9,2830.0,0.90699264]
[1763663471035,0.1,2830.2,2830.0,0.90699264]
[1763663471243,0.463,2830.9,2830.1,0.405504]
[1763663471401,0.002,2831.0,2830.7,0.405504]
[1763663471707,0.002,2831.0,2830.1,1.83363916]
[1763663471708,0.002,2831.3,2831.1,0.405504]
[1763663472323,0.002,2831.3,2831.0,0.90699264]
[1763663472506,0.002,2831.3,2831.1,0.405504]
[1763663473633,0.002,2831.4,2831.1,0.866004]
[1763663473798,0.002,2831.6,2831.5,8.43635156]
[1763663474334,0.002,2831.6,2831.5,1.31249664]
[1763663475231,0.463,2832.9,2831.6,1.31249664]
[1763663475434,0.1865,2832.4,2831.8,7.12385492]
[1763663475636,0.55414405,2832.1,2831.8,7.12385492]
[1763663475938,0.565,2831.9,2831.5,0.90699264]
[1763663476138,0.463,2831.8,2831.1,0.90699264]
[1763663476339,0.1,2831.6,2830.8,7.12385492]
[1763663476701,0.1,2831.6,2830.9,0.90699264]
[1763663476902,0.1,2831.3,2831.0,0.405504]
[1763663477128,0.1,2831.6,2831.3,0.90699264]
[1763663477530,0.463,2831.5,2831.3,0.90699264]
[1763663477709,0.1,2831.3,2830.9,0.90699264]
[1763663478032,0.465,2831.9,2830.9,0.90699264]
[1763663478200,0.1,2831.5,2830.9,0.90699264]
[1763663478400,0.465,2831.9,2830.9,0.90699264]
[1763663478401,0.465,2831.9,2831.3,0.90699264]
[1763663478605,0.465,2831.9,2831.1,0.90699264]
[1763663478606,0.1,2831.7,2831.1,0.90699264]
[1763663479244,0.1,2831.7,2831.1,1.04719264]
[1763663479450,0.55414405,2832.1,2831.6,0.405504]
[1763663479607,0.55414405,2832.1,2831.9,0.90699264]
[1763663480043,1.01714405,2832.1,2831.5,0.90699264]
[1763663480247,0.1,2831.6,2830.1,0.4605]
[1763663480447,0.463,2832.0,2830.8,7.12385492]
[1763663480762,0.1865,2830.9,2829.4,7.12385492]
[1763663481044,0.1,2830.6,2829.4,0.73050549]
[1763663481259,0.1,2830.4,2829.8,0.90699264]
[1763663481420,0.1,2830.4,2829.9,7.12385492]
[1763663481744,0.1,2830.0,2829.6,0.90699264]
[1763663482552,0.1,2830.3,2829.6,0.90699264]
[1763663482733,0.6495,2829.9,2829.3,0.001]
[1763663483047,0.1,2829.4,2829.3,0.001]
[1763663483249,0.1865,2830.9,2829.3,0.001]
[1763663483250,0.1865,2830.2,2829.3,0.001]
[1763663483466,0.1865,2830.2,2829.7,0.90699264]
[1763663483777,0.1865,2831.2,2830.1,1.45269664]
[1763663483920,0.463,2831.1,2830.6,0.90699264]
[1763663484120,0.1,2830.7,2830.6,0.90699264]
[1763663484360,0.463,2831.1,2830.6,0.90699264]
[1763663484361,0.1,2831.1,2830.6,0.90699264]
[1763663484567,0.1,2831.1,2830.1,0.1402]
[1763663484568,0.463,2831.0,2830.4,0.90699264]
[1763663484768,0.1,2830.8,2830.5,0.80308476]
[1763663484972,0.2865,2831.2,2830.8,0.90699264]
[1763663485867,1.303785,2831.2,2830.8,0.90699264]
[1763663486241,0.840785,2831.2,2830.8,0.90699264]
[1763663486836,0.1,2831.1,2830.8,0.90699264]
[1763663487238,0.1865,2830.9,2830.4,0.90699264]
[1763663487480,0.554285,2831.2,2830.7,7.12385492]
[1763663487662,0.554285,2831.2,2830.8,0.90699264]
[1763663487850,0.1,2831.1,2830.8,0.90699264]
[1763663488053,0.1865,2830.9,2830.3,7.12385492]
[1763663488250,0.1,2830.7,2829.9,7.12385492]
[1763663488454,0.1,2830.6,2830.0,0.90699264]
[1763663488780,0.6495,2830.9,2829.5,7.12385492]
[1763663489081,0.6495,2830.9,2829.3,0.001]
[1763663489082,0.1,2829.6,2829.3,0.001]
[1763663489291,0.1,2829.5,2829.3,0.001]
[1763663489652,0.1,2830.0,2829.3,1.62047813]
[1763663489877,0.1,2829.7,2829.3,1.62047813]
[1763663490089,0.463,2829.6,2829.3,0.001]
[1763663490392,0.1865,2830.1,2829.3,0.001]
[1763663490393,0.1,2829.5,2829.3,0.001]
[1763663491263,0.4983,2829.4,2829.3,0.001]
[1763663491474,0.4983,2829.8,2829.3,7.12485492]
[1763663491653,0.1,2829.6,2829.4,0.90699264]
[1763663492157,0.1,2829.9,2829.4,0.90699264]
[1763663492889,0.1,2830.3,2829.8,0.90699264]
[1763663493096,0.1,2830.6,2830.2,0.90699264]
[1763663493652,0.1865,2830.9,2830.2,0.90699264]
[1763663493986,0.1,2830.5,2830.2,0.90699264]
[1763663494197,0.4983,2830.8,2829.7,7.12385492]
[1763663494492,0.4983,2830.8,2829.8,0.90699264]
[1763663494690,0.1,2830.2,2829.8,0.90699264]
[1763663494906,0.1,2829.9,2829.3,7.12485492]
[1763663495062,0.1873,2829.9,2829.3,7.12485492]
[1763663495266,0.1,2829.6,2829.3,7.12485492]
[1763663495586,0.1,2829.4,2829.3,0.001]
[1763663495950,0.5983,2829.4,2829.3,0.001]
[1763663496350,0.4983,2829.4,2829.3,0.001]
[1763663496649,0.5983,2829.4,2829.3,0.001]
[1763663496988,0.1,2829.6,2829.3,0.001]
[1763663497149,0.4983,2829.8,2829.3,0.001]
[1763663497351,0.1,2829.4,2829.3,0.001]
[1763663497865,0.5983,2829.4,2829.3,0.001]
[1763663498977,0.1,2829.1,2829.0,0.001]
[1763663499183,0.1,2829.1,2828.7,0.001]
[1763663499353,0.1,2827.8,2827.3,7.12385492]
[1763663499558,0.1,2827.8,2827.4,1.61937813]
[1763663500185,0.1,2827.8,2826.8,0.124]
[1763663500186,0.4866,2827.7,2826.9,7.12385492]
[1763663500389,0.600004,2828.8,2826.9,7.12385492]
[1763663500390,0.1,2827.4,2826.9,7.12385492]
[1763663500690,1.53759558,2828.8,2827.4,0.90699264]
[1763663500691,0.1,2827.8,2827.4,0.90699264]
[1763663500900,0.1,2827.5,2827.0,6.21764545]
[1763663501056,0.1,2827.5,2827.1,0.62176455]
[1763663501387,0.1,2827.4,2827.1,0.62176455]
[1763663501595,0.1,2827.4,2827.0,6.21764545]
[1763663501794,0.4866,2827.3,2826.5,6.21864545]
[1763663502138,0.1,2827.5,2827.1,0.90699264]
[1763663502250,0.4866,2828.5,2827.1,0.90699264]
[1763663502450,0.1945,2828.8,2828.1,0.90699264]
[1763663502451,0.1,2828.6,2828.1,0.90699264]
[1763663502706,0.4866,2828.7,2827.6,0.90699264]
[1763663502990,0.1,2827.8,2827.6,1.61945645]
[1763663503193,0.1,2827.8,2827.1,0.90699264]
[1763663503397,0.4866,2828.2,2827.1,0.90699264]
[1763663503691,0.4866,2828.7,2827.6,0.90699264]
[1763663503854,0.1,2828.1,2827.2,0.1422]
[1763663504049,0.1,2827.5,2827.2,0.1422]
[1763663504268,0.1,2827.5,2827.2,0.86888381]
[1763663504462,0.65491466,2827.5,2827.2,0.86888381]
[1763663505085,0.65491466,2827.5,2827.2,0.72668381]
[1763663505289,0.1,2827.5,2827.0,6.21764545]
[1763663505478,0.1,2827.3,2827.0,6.21764545]
[1763663505678,0.1,2827.3,2827.1,0.90699264]
[1763663505997,0.1,2827.3,2826.6,6.21764545]
[1763663506201,0.1,2827.3,2826.7,0.90699264]
[1763663506398,0.1,2827.3,2826.7,1.61955645]
[1763663506598,0.1,2827.3,2826.4,0.001]
[1763663506914,0.5866,2827.3,2826.4,0.001]
[1763663507294,0.59037902,2828.3,2826.4,0.001]
[1763663507295,0.1,2827.6,2827.1,6.21764545]
[1763663507473,0.1,2827.6,2827.1,6.35984545]
[1763663507673,0.1,2827.6,2827.2,0.90699264]
[1763663507987,0.1,2827.3,2826.6,1.31249664]
[1763663508189,0.1,2826.8,2826.5,0.001]
[1763663508498,0.2945,2826.6,2826.5,0.001]
[1763663508703,0.7811,2826.6,2826.5,0.001]
[1763663509099,0.1945,2826.9,2826.5,0.001]
[1763663509304,0.1,2826.8,2826.5,0.001]
[1763663509502,0.5550195,2827.6,2826.9,0.90699264]
[1763663509678,0.4866,2827.4,2826.5,1.53005718]
[1763663510108,0.1,2827.2,2826.5,1.53005718]
[1763663510412,0.5550195,2827.6,2826.5,1.53005718]
[1763663510413,0.5866,2827.3,2826.5,0.90799264]
[1763663510611,0.4866,2827.5,2826.5,0.001]
[1763663510817,0.1,2826.6,2826.5,0.001]
[1763663511388,0.1,2826.8,2826.5,0.001]
[1763663511689,0.5550195,2827.6,2826.6,0.405504]
[1763663512011,0.1,2827.8,2827.4,0.90699264]
[1763663512311,0.18486334,2828.6,2827.5,0.90147093]
[1763663512510,0.1945,2829.4,2828.5,0.1402]
[1763663512678,0.1,2829.1,2828.5,0.1402]
[1763663513103,0.1,2828.7,2828.5,0.90699264]
[1763663513301,0.1,2829.0,2828.5,1.75038413]
[1763663513888,0.1,2828.7,2828.5,0.90699264]
[1763663514291,0.1,2829.3,2828.5,0.90699264]
[1763663514513,0.1,2829.3,2828.5,1.36759264]
[1763663514746,0.1,2829.3,2828.5,0.90699264]
[1763663514904,0.1,2829.3,2828.6,0.405504]
[1763663515080,0.55472418,2829.4,2829.0,0.90699264]
[1763663515591,0.1,2830.0,2829.1,0.866104]
[1763663515809,0.55460033,2829.6,2829.0,1.75038413]
[1763663515982,0.1,2829.5,2829.0,1.75038413]
[1763663516724,0.1,2829.4,2829.0,1.75038413]
[1763663517218,0.55460033,2829.6,2829.0,1.75038413]
[1763663517531,0.1,2829.5,2829.0,1.75038413]
[1763663518014,0.55460033,2829.6,2829.1,0.92773064]
[1763663518223,0.1,2829.4,2829.1,0.92773064]
[1763663518405,0.55460033,2829.6,2829.0,0.90699264]
[1763663518605,0.55460033,2829.6,2829.4,7.52692226]
[1763663518807,0.55460033,2829.6,2829.5,0.90699264]
[1763663519182,0.55460033,2829.6,2829.0,1.31249664]
[1763663519397,0.1,2829.5,2829.0,0.90699264]
[1763663520527,0.65460033,2829.6,2828.9,7.52692226]
[1763663520729,0.1,2829.2,2828.4,7.52692226]
[1763663520885,0.1,2829.2,2828.5,0.90699264]
[1763663521128,0.1,2829.2,2828.4,8.30603449]
[1763663521425,0.1,2828.6,2827.9,7.52692226]
[1763663521629,0.1,2829.2,2828.5,0.90699264]
[1763663521969,1.04120033,2829.6,2828.5,0.90699264]
[1763663522169,0.1,2828.9,2828.5,0.90699264]
[1763663522523,0.55460033,2829.6,2828.6,0.4606]
[1763663522725,0.1945,2828.7,2827.9,7.52692226]
[1763663522967,0.1,2828.8,2828.0,0.90699264]
[1763663523168,0.1945,2828.6,2827.4,7.65092226]
[1763663523369,0.1,2828.1,2827.5,1.67208487]
[1763663523728,0.1,2828.1,2827.5,0.76509223]
[1763663523931,0.1,2828.1,2827.4,7.52692226]
[1763663524130,0.1945,2828.9,2828.0,0.90699264]
[1763663524375,0.1,2828.7,2828.5,0.90699264]
[1763663525284,0.1,2828.7,2827.8,0.4606]
[1763663525285,0.1,2828.4,2828.0,0.90699264]
[1763663525605,0.75770321,2829.5,2828.1,0.56486342]
[1763663525606,0.1,2829.5,2828.1,0.56486342]
[1763663525821,0.55460033,2829.6,2829.0,0.90699264]
[1763663526103,1.87518317,2831.0,2829.0,0.90699264]
[1763663526104,0.1,2830.4,2829.5,0.90699264]
[1763663526307,0.55449716,2830.0,2829.6,0.405504]
[1763663526509,0.4866,2830.7,2829.6,0.405504]
[1763663526510,0.1,2830.4,2830.0,0.90699264]
[1763663526812,0.1,2830.5,2830.0,0.90699264]
[1763663527115,0.1,2830.2,2830.0,0.90699264]
[1763663527462,0.1,2830.1,2829.5,0.90699264]
[1763663527666,0.18468397,2831.2,2829.9,7.52692226]
[1763663527862,0.1,2830.8,2830.4,7.52692226]
[1763663528166,0.1,2831.2,2830.5,0.90699264]
[1763663528381,0.4866,2831.7,2831.0,0.90699264]
[1763663528613,0.1,2831.4,2831.0,0.90699264]
[1763663528790,0.002,2831.9,2831.0,0.90699264]
[1763663528791,0.002,2831.9,2831.5,0.90699264]
[1763663529122,0.002,2831.9,2830.6,1.36949264]
[1763663529123,0.4848,2831.9,2830.6,1.36949264]
[1763663529407,0.1,2831.5,2830.7,0.405504]
[1763663529565,0.002,2831.9,2831.1,0.90699264]
[1763663529766,0.002,2831.9,2831.2,0.405504]
[1763663530206,0.002,2831.9,2831.6,0.90699264]
[1763663530514,0.002,2831.9,2831.3,0.6037]
[1763663530515,0.002,2831.9,2831.3,0.1412]
[1763663530664,0.002,2831.9,2831.5,7.52692226]
[1763663530867,0.002,2831.9,2831.2,0.124]
[1763663531062,0.1,2831.7,2831.1,0.90699264]
[1763663531269,0.4828,2831.7,2831.0,7.52692226]
[1763663531465,0.1,2831.3,2830.5,7.52692226]
[1763663532007,0.1,2831.3,2830.6,0.90699264]
[1763663532329,0.002,2831.9,2831.1,0.405504]
[1763663532330,0.102,2831.9,2831.1,0.405504]
[1763663532480,0.102,2831.9,2831.5,7.52692226]
[1763663533006,0.1,2831.6,2830.5,7.52692226]
[1763663533219,0.4848,2831.9,2829.3,0.4625]
[1763663533220,0.1,2830.7,2829.3,0.4625]
[1763663533395,0.1,2829.8,2829.0,7.66812226]
[1763663533595,0.1,2829.8,2829.0,8.43493449]
[1763663533810,0.1,2829.8,2829.1,0.90699264]
[1763663534184,0.1816,2830.1,2829.0,7.52692226]
[1763663534185,0.1,2829.5,2829.0,7.52692226]
[1763663534422,0.1,2829.8,2829.0,7.52692226]
[1763663534931,0.1,2829.3,2829.1,0.90699264]
[1763663535093,0.1,2829.3,2829.0,7.52692226]
[1763663535294,0.1816,2830.1,2829.0,7.98942226]
[1763663535629,0.1,2829.7,2828.7,7.52692226]
[1763663535932,0.4828,2830.0,2829.4,0.90699264]
[1763663536233,0.4828,2830.0,2828.8,7.52692226]
[1763663536234,0.1,2829.5,2828.8,7.52692226]
[1763663536417,0.1,2828.7,2828.3,7.52692226]
[1763663536598,0.1,2829.2,2828.5,0.405504]
[1763663536921,0.1,2830.0,2829.0,0.405504]
[1763663537128,0.1,2830.0,2829.4,0.90699264]
[1763663537281,0.1,2830.0,2829.4,1.75038413]
[1763663537481,0.1816,2830.1,2829.4,0.90699264]
[1763663537685,0.1,2829.7,2829.4,0.90699264]
[1763663537927,0.1,2830.2,2829.5,0.868004]
[1763663538115,0.1,2830.3,2830.0,0.90699264]
[1763663538314,0.1,2830.2,2830.0,0.90699264]
[1763663539012,0.1,2830.7,2830.0,1.75038413]
[1763663539213,0.1,2830.4,2830.0,0.90699264]
[1763663539526,0.6644,2831.2,2829.5,1.43649664]
[1763663539527,0.1,2830.5,2829.5,1.43649664]
[1763663539686,0.55444887,2830.4,2830.0,0.90699264]
[1763663539922,0.1,2830.8,2830.0,0.90699264]
[1763663540122,0.4828,2831.1,2830.0,0.90699264]
[1763663540321,0.1,2830.2,2830.0,0.90699264]
[1763663540546,0.1,2830.5,2830.0,0.94232832]
[1763663540749,0.1816,2831.2,2830.5,0.90699264]
[1763663541062,0.6644,2831.2,2830.5,0.90699264]
[1763663541556,0.1,2830.8,2830.5,0.90699264]
[1763663541766,0.1816,2831.2,2830.5,1.75038413]
[1763663541968,0.75872344,2831.9,2831.1,0.90699264]
[1763663541969,0.002,2831.9,2831.1,0.90699264]
[1763663542128,0.002,2831.9,2831.7,0.90699264]
[1763663543321,0.002,2831.9,2831.0,0.405504]
[1763663543561,0.002,2831.9,2831.8,8.5751149]
[1763663543757,0.002,2831.9,2831.8,9.43262639]
[1763663543971,0.002,2832.2,2832.0,0.405504]
[1763663544129,0.002,2832.4,2832.3,8.4339149]
[1763663544327,0.002,2832.4,2832.3,0.90699264]
[1763663544550,0.002,2832.4,2832.3,8.4339149]
[1763663545158,0.6664,2832.4,2832.3,0.90699264]
[1763663545366,0.6664,2832.4,2831.3,7.52692226]
[1763663545367,0.1,2831.8,2831.3,7.52692226]
[1763663545666,0.1,2831.7,2831.3,7.52692226]
[1763663545866,0.4828,2831.6,2830.8,7.52692226]
[1763663546031,0.4828,2831.6,2830.9,0.90699264]
[1763663546032,0.002,2831.0,2830.9,0.90699264]
[1763663546447,0.002,2831.0,2830.8,7.52692226]
[1763663546664,0.002,2831.0,2830.9,7.52692226]
[1763663547278,0.1,2831.9,2831.0,1.31249664]
[1763663547480,0.1,2831.9,2831.4,7.52692226]
[1763663547651,0.1,2831.9,2831.5,0.90699264]
[1763663547851,0.1,2832.2,2831.5,1.04819264]
[1763663548048,0.2836,2832.4,2831.5,1.04819264]
[1763663548258,0.002,2832.4,2832.0,0.90699264]
[1763663548567,0.002,2832.4,2832.1,0.868004]
[1763663548873,0.002,2832.4,2832.3,0.405504]
[1763663549288,0.002,2832.4,2832.0,0.90699264]
[1763663549584,0.002,2832.4,2831.6,1.31249664]
[1763663549585,0.1,2832.3,2831.6,1.31249664]
[1763663549885,0.1,2832.3,2831.5,7.52692226]
[1763663550054,0.4828,2832.2,2831.0,7.52692226]
[1763663550246,0.1,2831.9,2831.1,1.70593487]
[1763663550445,0.1,2831.6,2831.1,1.70593487]
[1763663550748,0.1,2831.6,2830.5,7.98942226]
[1763663550961,0.1,2831.6,2830.6,0.90699264]
[1763663551159,0.4828,2831.6,2830.1,7.52692226]
[1763663551368,0.1816,2830.2,2829.0,7.52692226]
[1763663551684,0.1,2829.8,2828.5,0.001]
[1763663551982,0.1,2828.9,2828.5,0.001]
[1763663552149,0.2816,2828.6,2828.5,0.001]
[1763663552346,0.2816,2828.6,2828.2,0.001]
[1763663552347,0.1816,2828.6,2828.2,0.001]
[1763663552650,0.1,2828.0,2827.9,0.001]
[1763663553158,0.5828,2828.0,2827.9,0.001]
[1763663554584,0.1,2828.0,2827.9,0.001]
[1763663554784,0.4837,2829.2,2828.0,0.405504]
[1763663554989,0.1,2829.2,2828.2,7.52692226]
[1763663555189,0.4837,2829.8,2828.3,0.90699264]
[1763663555389,0.1,2829.1,2828.8,0.90699264]
[1763663555590,0.1,2829.9,2828.9,0.405504]
[1763663555897,0.1,2829.9,2828.4,0.5869]
[1763663555898,0.6653,2830.2,2828.5,0.405504]
[1763663556079,0.6653,2830.2,2828.8,1.31249664]
[1763663556252,0.1,2829.6,2828.9,0.88394189]
[1763663557288,0.1,2829.0,2828.8,0.90699264]
[1763663557655,0.1,2829.5,2828.8,0.90699264]
[1763663558891,0.1,2830.0,2829.3,0.90699264]
[1763663559066,0.455,2830.1,2828.8,7.52692226]
[1763663559260,0.1,2829.6,2828.9,0.90699264]
[1763663559462,0.455,2830.1,2828.9,1.04819264]
[1763663559665,0.1,2829.9,2829.0,0.405504]
[1763663559869,0.1,2829.9,2829.4,0.90699264]
[1763663560069,0.1,2830.2,2829.4,0.90699264]
[1763663560283,0.1,2829.8,2828.9,0.90699264]
[1763663560573,0.455,2830.2,2829.0,0.405504]
[1763663560773,0.455,2830.8,2829.4,0.90699264]
[1763663561174,0.1,2829.9,2829.4,0.90699264]
[1763663561393,0.405504,2830.7,2828.9,1.04819264]
[1763663561590,0.405504,2830.7,2829.0,0.93278071]
[1763663561591,0.1,2829.5,2829.0,0.93278071]
[1763663561990,0.1,2829.7,2829.3,7.52692226]
[1763663562205,0.1,2830.0,2829.4,0.90699264]
[1763663562709,0.002,2829.5,2829.4,2.15588813]
[1763663562920,0.002,2829.8,2829.5,0.405504]
[1763663563114,0.002,2829.8,2829.7,8.8394189]
[1763663563320,0.1,2831.0,2829.8,1.31249664]
[1763663563523,0.1,2831.0,2829.7,9.4451189]
[1763663563524,0.457,2832.4,2831.0,0.90699264]
[1763663563688,0.55421996,2831.4,2831.0,0.90699264]
[1763663563876,0.55421996,2831.4,2830.9,7.52692226]
[1763663564210,0.1,2831.1,2830.5,0.405504]
[1763663564410,0.1,2831.1,2830.4,7.52692226]
[1763663564798,0.1,2831.0,2830.4,7.52692226]
[1763663565529,0.1,2830.6,2829.9,7.52692226]
[1763663565822,0.455,2831.0,2829.1,0.124]
[1763663565823,0.1897,2830.0,2829.1,0.124]
[1763663565992,0.6447,2830.9,2829.4,7.52692226]
[1763663566194,0.1,2829.9,2828.9,7.66812226]
[1763663566517,0.1,2829.4,2828.6,0.124]
[1763663566718,0.1,2829.3,2828.5,0.90699264]
[1763663566886,0.1,2829.2,2828.6,0.84339149]
[1763663568726,0.1,2828.9,2828.4,7.52692226]
[1763663568931,0.1,2829.2,2828.5,0.90699264]
[1763663569626,0.1,2828.6,2828.1,0.001]
[1763663569833,0.455,2829.1,2828.1,0.001]
[1763663570031,0.1897,2829.5,2828.2,0.75279223]
[1763663570032,0.1,2829.3,2828.2,0.75279223]
[1763663570236,0.1,2828.7,2828.2,0.75279223]
[1763663570540,0.1,2828.7,2828.1,0.90799264]
[1763663571033,0.1897,2829.5,2828.1,0.90799264]
[1763663571034,0.1,2828.6,2828.1,0.90799264]
[1763663571239,0.1,2828.4,2828.1,0.90799264]
[1763663571548,0.1,2828.9,2828.1,0.001]
[1763663571712,0.1,2828.4,2828.1,0.001]
[1763663572223,0.555,2828.4,2828.1,0.001]
[1763663572412,0.1,2828.3,2828.1,0.001]
[1763663573012,0.1,2829.1,2828.2,0.405504]
[1763663573207,0.1,2828.9,2828.5,0.90699264]
[1763663573707,0.1,2829.1,2828.5,0.90699264]
[1763663574038,0.1,2828.8,2828.3,0.90699264]
[1763663574253,0.455,2829.4,2828.1,0.001]
[1763663574254,0.1,2828.5,2828.1,0.001]
[1763663574534,0.405504,2829.3,2828.1,0.001]
[1763663574535,0.1,2828.2,2828.1,0.001]
[1763663575298,0.555,2828.2,2828.1,0.001]
[1763663575809,0.1,2828.2,2828.1,0.001]
[1763663576225,0.555,2828.2,2828.1,0.001]
[1763663577653,0.1,2828.0,2827.6,0.001]
[1763663577942,1.3484795,2827.9,2826.0,0.001]
[1763663578162,0.1,2826.6,2826.0,0.001]
[1763663578508,0.555,2826.6,2826.0,0.001]
[1763663578748,0.455,2826.6,2826.0,0.001]
[1763663578953,0.555,2826.6,2826.0,0.001]